bitfinex-derivatives/quotes_BNBF0:USTF0_20250810
["timestamp","ask_amount","ask_price","bid_price","bid_amount"]
[1754851625611,0.21664021,803.95,803.15,2.79576934]
[1754851627808,0.21664021,803.95,803.18,2.79576934]
[1754851629912,0.21664021,803.95,803.15,2.79576934]
[1754851630510,0.21664021,803.95,803.17,2.79576934]
[1754851631313,0.21664021,803.95,803.18,2.79576934]
[1754851632513,0.21664021,803.95,803.19,2.79576934]
[1754851632914,0.21664021,803.95,803.24,2.79576934]
[1754851633612,0.21664021,803.95,803.25,2.79576934]
[1754851635614,0.21664021,803.95,802.94,3.90341846]
[1754851635615,0.21664021,803.95,803.03,2.79576934]
[1754851636111,0.21664021,803.95,802.98,2.79576934]
[1754851636915,0.21664021,803.95,802.91,2.79576934]
[1754851637414,0.21664021,803.95,802.9,2.79576934]
[1754851638515,0.21664021,803.95,802.89,2.79576934]
[1754851639414,0.21664021,803.95,802.91,2.79576934]
[1754851640212,0.21664021,803.95,802.93,2.79576934]
[1754851641712,0.21664021,803.95,802.92,2.79576934]
[1754851642013,0.21664021,803.95,802.93,2.79576934]
[1754851642511,0.21664021,803.95,802.82,2.79576934]
[1754851643215,0.21664021,803.95,802.79,2.79576934]
[1754851644712,0.21664021,803.95,802.78,2.79576934]
[1754851645117,0.21664021,803.95,802.79,2.79576934]
[1754851645618,0.21664021,803.95,802.85,2.79576934]
[1754851646721,0.21664021,803.95,802.87,2.79576934]
[1754851648422,0.21664021,803.95,802.86,2.79576934]
[1754851649823,0.21664021,803.95,802.92,2.79576934]
[1754851650819,0.21664021,803.95,802.91,2.79576934]
[1754851652527,0.21664021,803.95,803.05,2.79576934]
[1754851653129,0.21664021,803.95,803.1,2.79576934]
[1754851654627,0.21664021,803.95,803.12,2.79576934]
[1754851655626,0.21664021,803.95,803.2,2.79576934]
[1754851660928,0.21664021,803.95,803.19,2.79576934]
[1754851661530,0.21664021,803.95,803.2,2.79576934]
[1754851662931,0.21664021,803.95,803.07,2.79576934]
[1754851664035,0.21664021,803.95,803.08,2.79576934]
[1754851666133,0.21664021,803.95,803.06,2.79576934]
[1754851667137,0.21664021,803.95,803.05,2.79576934]
[1754851669136,0.21664021,803.95,803.0,2.79576934]
[1754851670940,0.21664021,803.95,803.02,2.79576934]
[1754851672841,0.21664021,803.95,803.15,2.79576934]
[1754851674546,0.21664021,803.95,803.18,2.79576934]
[1754851675948,0.21664021,803.95,803.2,2.79576934]
[1754851678549,0.21664021,803.95,803.21,2.79576934]
[1754851679648,0.21664021,803.95,803.01,2.79576934]
[1754851680651,0.21664021,803.95,803.0,2.79576934]
[1754851681152,0.21664021,803.95,802.99,2.79576934]
[1754851681651,0.21664021,803.95,803.0,2.79576934]
[1754851682854,0.21664021,803.95,803.02,2.79576934]
[1754851683851,0.21664021,803.95,802.99,2.79576934]
[1754851685954,0.21664021,803.95,802.97,2.79576934]
[1754851686354,0.21664021,803.95,802.98,2.79576934]
[1754851688463,0.21664021,803.95,802.99,2.79576934]
[1754851689062,0.21664021,803.95,803.01,2.79576934]
[1754851689663,0.21664021,803.95,803.19,2.79576934]
[1754851691665,0.21664021,803.95,803.2,2.79576934]
[1754851693766,0.21664021,803.95,803.21,2.79576934]
[1754851695764,0.21664021,803.95,803.09,2.79576934]
[1754851697064,0.21664021,803.95,803.1,2.79576934]
[1754851702576,0.21664021,803.95,803.11,2.79576934]
[1754851703274,0.21664021,803.95,803.08,2.79576934]
[1754851703669,0.21664021,803.95,803.07,2.79576934]
[1754851705872,0.21664021,803.95,803.18,2.79576934]
[1754851706273,0.21664021,803.95,803.15,2.79576934]
[1754851707778,0.21664021,803.95,803.14,2.79576934]
[1754851709979,0.21664021,803.95,803.13,2.79576934]
[1754851710379,0.21664021,803.95,803.14,2.79576934]
[1754851711576,0.21664021,803.95,803.13,2.79576934]
[1754851713082,0.21664021,803.95,803.22,2.79576934]
[1754851716380,0.21664021,803.95,803.21,2.79576934]
[1754851722989,0.21664021,803.95,803.14,2.79576934]
[1754851723389,0.21664021,803.95,802.86,3.90341846]
[1754851723390,0.21664021,803.95,803.15,2.79576934]
[1754851726696,0.21664021,803.95,803.14,2.79576934]
[1754851728199,0.21664021,803.95,803.18,2.79576934]
[1754851728698,0.21664021,803.95,802.89,3.90341846]
[1754851728899,0.21664021,803.95,802.77,2.79576934]
[1754851732404,0.21664021,803.95,802.76,2.79576934]
[1754851733000,0.21664021,803.95,802.79,2.79576934]
[1754851733405,0.21664021,803.95,802.76,2.79576934]
[1754851735903,0.21664021,803.95,802.66,2.79576934]
[1754851736402,0.21664021,803.95,802.67,2.79576934]
[1754851737005,0.21664021,803.95,802.66,2.79576934]
[1754851738004,0.21664021,803.95,802.67,2.79576934]
[1754851738507,0.21664021,803.95,802.96,2.79576934]
[1754851739609,0.21664021,803.95,802.97,2.79576934]
[1754851742311,0.21664021,803.95,803.0,2.79576934]
[1754851743308,0.21664021,803.95,803.13,2.79576934]
[1754851743708,0.21664021,803.95,803.12,2.79576934]
[1754851744208,0.21664021,803.95,802.87,3.90341846]
[1754851744209,0.21664021,803.95,803.13,2.79576934]
[1754851744909,0.21664021,803.95,803.1,2.79576934]
[1754851746015,0.21664021,803.95,803.28,2.79576934]
[1754851751216,0.21664021,803.95,803.27,2.79576934]
[1754851752612,0.21664021,803.95,803.02,2.79576934]
[1754851753820,0.21664021,803.95,803.0,2.79576934]
[1754851754716,0.21664021,803.95,802.98,2.79576934]
[1754851755719,0.21664021,803.95,802.92,2.79576934]
[1754851756519,0.21664021,803.95,802.64,2.79576934]
[1754851756919,0.21664021,803.95,802.63,0.21664358]
[1754851762526,0.21664021,803.95,802.67,2.79576934]
[1754851763223,0.21664021,803.95,802.63,3.01241292]
[1754851763627,0.21664021,803.95,802.63,0.21664358]
[1754851773623,0.21664021,803.95,802.77,2.79576934]
[1754851774632,0.21664021,803.95,802.63,0.21664358]
[1754851782338,0.21664021,803.95,802.71,2.79576934]
[1754851783141,0.21664021,803.95,802.72,2.79576934]
[1754851784644,0.21664021,803.95,802.98,2.79576934]
[1754851785545,0.21664021,803.95,803.06,2.79576934]
[1754851785945,0.21664021,803.95,802.94,2.79576934]
[1754851787643,0.21664021,803.95,802.92,2.79576934]
[1754851790346,0.21664021,803.95,802.64,3.90341846]
[1754851790347,0.21664021,803.95,803.02,2.79576934]
[1754851793847,0.21664021,803.95,803.03,2.79576934]
[1754851794848,0.21664021,803.95,802.98,2.79576934]
[1754851795947,0.21664021,803.95,803.04,2.79576934]
[1754851798754,0.21664021,803.95,803.05,2.79576934]
[1754851799654,0.21664021,803.95,803.01,2.79576934]
[1754851800053,0.21664021,803.95,803.09,2.79576934]
[1754851801157,0.21664021,803.95,803.01,2.79576934]
[1754851801654,0.21664021,803.95,802.99,2.79576934]
[1754851803254,0.21664021,803.95,803.01,2.79576934]
[1754851805860,0.21664021,803.95,803.0,2.79576934]
[1754851806461,0.21664021,803.95,803.01,2.79576934]
[1754851806957,0.21664021,803.95,803.04,2.79576934]
[1754851808563,0.21664021,803.95,803.1,2.79576934]
[1754851809558,0.21664021,803.95,803.19,2.79576934]
[1754851811562,0.21664021,803.95,803.2,2.79576934]
[1754851813669,0.21664021,803.95,803.19,2.79576934]
[1754851815771,0.21664021,803.95,803.13,2.79576934]
[1754851816273,0.21664021,803.95,803.17,2.79576934]
[1754851817469,0.21664021,803.95,803.16,2.79576934]
[1754851818370,0.21664021,803.95,803.11,2.79576934]
[1754851818569,0.5,804.22,803.11,2.79576934]
[1754851818873,0.21664426,803.76,803.11,2.79576934]
[1754851819071,0.5,804.22,803.11,2.79576934]
[1754851819275,0.21664426,803.76,803.11,2.79576934]
[1754851819475,0.5,804.22,803.13,2.79576934]
[1754851819873,0.21664426,803.76,803.13,2.79576934]
[1754851820076,0.5,804.22,803.12,2.79576934]
[1754851820277,0.21664291,803.76,803.12,2.79576934]
[1754851820576,0.5,804.22,803.12,2.79576934]
[1754851821477,0.5,804.22,803.13,2.79576934]
[1754851821877,0.21664358,803.95,803.13,2.79576934]
[1754851822177,0.21664358,803.95,803.12,2.79576934]
[1754851822473,0.21664358,803.95,803.11,2.79576934]
[1754851823177,0.21664358,803.95,803.04,2.79576934]
[1754851824080,0.21664358,803.95,802.99,2.79576934]
[1754851824675,0.21664358,803.95,803.03,2.79576934]
[1754851825777,0.21664358,803.95,803.01,2.79576934]
[1754851826278,0.21664358,803.95,802.88,2.79576934]
[1754851827182,0.21664358,803.95,803.09,2.79576934]
[1754851828179,0.21664358,803.95,803.08,2.79576934]
[1754851829382,0.21664358,803.95,803.07,2.79576934]
[1754851831379,0.21664358,803.95,803.06,2.79576934]
[1754851832585,0.21664358,803.95,803.16,2.79576934]
[1754851833685,0.21664358,803.95,803.15,2.79576934]
[1754851834082,0.21664358,803.95,803.06,2.79576934]
[1754851836185,0.21664358,803.95,803.22,2.79576934]
[1754851837189,0.21664358,803.95,803.2,2.79576934]
[1754851837789,0.21664358,803.95,803.04,2.79576934]
[1754851838190,0.21664358,803.95,802.98,2.79576934]
[1754851839490,0.21664358,803.95,803.06,2.79576934]
[1754851839792,0.21664358,803.95,803.07,2.79576934]
[1754851840790,0.21664358,803.95,803.08,2.79576934]
[1754851841391,0.21664358,803.95,803.07,2.79576934]
[1754851842889,0.21664358,803.95,803.06,2.79576934]
[1754851843393,0.21664358,803.95,803.07,2.79576934]
[1754851844392,0.21664358,803.95,803.08,2.79576934]
[1754851845493,0.21664358,803.95,803.07,2.79576934]
[1754851845994,0.21664358,803.95,803.05,2.79576934]
[1754851846694,0.21664358,803.95,803.06,2.79576934]
[1754851847692,0.21664358,803.95,803.21,2.79576934]
[1754851848197,0.21664358,803.95,803.07,2.79576934]
[1754851848598,0.21664358,803.95,803.08,2.79576934]
[1754851849698,0.21664358,803.95,803.11,2.79576934]
[1754851850697,0.21664358,803.95,803.12,2.79576934]
[1754851851896,0.21664358,803.95,803.11,2.79576934]
[1754851852398,0.21664358,803.95,803.1,2.79576934]
[1754851852896,0.21664358,803.95,803.11,2.79576934]
[1754851854500,0.21664358,803.95,802.82,3.90341846]
[1754851854501,0.21664358,803.95,803.12,2.79576934]
[1754851854896,0.21664358,803.95,803.11,2.79576934]
[1754851855399,0.21664358,803.95,803.13,2.79576934]
[1754851856094,0.21664358,803.95,803.14,2.79576934]
[1754851858101,0.21664358,803.95,803.24,2.79576934]
[1754851858699,0.21664358,803.95,803.25,2.79576934]
[1754851860206,0.21664358,803.95,803.16,2.79576934]
[1754851861301,0.21664358,803.95,803.17,2.79576934]
[1754851861702,0.21664358,803.95,803.19,2.79576934]
[1754851863203,0.21664358,803.95,803.22,2.79576934]
[1754851863803,0.21664358,803.95,803.23,2.79576934]
[1754851864901,0.21664358,803.95,803.24,2.79576934]
[1754851865809,0.21664358,803.95,803.22,2.79576934]
[1754851866507,0.21664358,803.95,803.23,2.79576934]
[1754851866905,0.21664358,803.95,803.24,2.79576934]
[1754851867506,0.21664358,803.95,803.23,2.79576934]
[1754851868413,0.21664358,803.95,803.33,2.79576934]
[1754851869112,0.21664358,803.95,803.34,2.79576934]
[1754851869510,0.21664358,803.95,803.37,2.79576934]
[1754851876314,0.21664358,803.95,803.25,2.79576934]
[1754851885125,0.21664358,803.95,803.14,2.79576934]
[1754851886128,0.21664358,803.95,803.28,2.79576934]
[1754851889832,0.21664358,803.95,803.27,2.79576934]
[1754851893038,0.21664358,803.95,803.35,2.79576934]
[1754851894035,0.21664358,803.95,803.32,2.79576934]
[1754851894538,0.21664358,803.95,803.41,2.79576934]
[1754851895639,0.21664358,803.95,803.4,2.79576934]
[1754851896140,0.21664358,803.95,803.41,2.79576934]
[1754851896634,0.21664358,803.95,803.4,2.79576934]
[1754851898842,0.21664358,803.95,803.44,2.79576934]
[1754851899840,0.21664358,803.95,803.38,2.79576934]
[1754851900342,0.21664358,803.95,803.32,2.79576934]
[1754851903446,0.21664358,803.95,803.38,2.79576934]
[1754851907645,0.21664358,803.95,803.4,2.79576934]
[1754851908049,0.21664358,803.95,803.35,2.79576934]
[1754851909250,0.21664358,803.95,803.34,2.79576934]
[1754851909651,0.21664358,803.95,803.39,2.79576934]
[1754851910252,0.21664358,803.95,803.44,2.79576934]
[1754851915954,0.21664358,803.95,803.21,2.79576934]
[1754851918054,0.21664358,803.95,803.26,2.79576934]
[1754851919056,0.21664358,803.95,803.23,2.79576934]
[1754851919657,0.21664358,803.95,803.24,2.79576934]
[1754851922761,0.21664358,803.95,803.25,2.79576934]
[1754851924761,0.21664358,803.95,803.27,2.79576934]
[1754851925358,0.21664358,803.95,803.28,2.79576934]
[1754851925862,0.04836194,803.95,803.51,2.79576934]
[1754851926161,0.5,804.46,803.51,2.79576934]
[1754851927558,0.5,804.46,803.52,2.79576934]
[1754851929064,0.21657752,804.23,803.52,2.79576934]
[1754851932561,0.21657752,804.23,803.51,2.79576934]
[1754851934266,0.21657752,804.23,803.52,2.79576934]
[1754851935668,0.21657752,804.23,803.53,2.79576934]
[1754851936164,0.21657752,804.23,803.44,2.79576934]
[1754851937366,0.21657752,804.23,803.27,2.79576934]
[1754851938265,0.21657752,804.23,803.3,2.79576934]
[1754851938867,0.21657752,804.23,803.34,2.79576934]
[1754851939466,0.21657752,804.23,803.33,2.79576934]
[1754851940473,0.21657752,804.23,803.29,2.79576934]
[1754851941873,0.21657752,804.23,803.35,2.79576934]
[1754851942373,0.21657752,804.23,803.36,2.79576934]
[1754851943072,0.21657752,804.23,803.49,2.79576934]
[1754851943973,0.21657752,804.23,803.48,2.79576934]
[1754851944769,0.21657752,804.23,803.47,2.79576934]
[1754851946273,0.21657752,804.23,803.5,2.79576934]
[1754851946672,0.21657752,804.23,803.49,2.79576934]
[1754851947271,0.21657752,804.23,803.37,2.79576934]
[1754851948776,0.21657752,804.23,803.38,2.79576934]
[1754851949774,0.21657752,804.23,803.4,2.79576934]
[1754851950775,0.21657752,804.23,803.48,2.79576934]
[1754851951878,0.21657752,804.23,803.47,2.79576934]
[1754851952374,0.21657752,804.23,803.48,2.79576934]
[1754851952981,0.21657752,804.23,803.47,2.79576934]
[1754851953482,0.21657752,804.23,803.46,2.79576934]
[1754851954483,0.21657752,804.23,803.63,2.79576934]
[1754851955778,0.21657752,804.23,803.62,2.79576934]
[1754851956177,0.21657752,804.23,803.64,2.79576934]
[1754851956679,0.21657752,804.23,803.57,2.79576934]
[1754851959284,0.21657752,804.23,803.62,2.79576934]
[1754851961783,0.21657752,804.23,803.61,2.79576934]
[1754851963587,0.21657752,804.23,803.5,2.79576934]
[1754851965886,0.21657752,804.23,803.36,2.79576934]
[1754851966585,0.21657752,804.23,803.41,2.79576934]
[1754851967987,0.21657752,804.23,803.4,2.79576934]
[1754851969193,0.21657752,804.23,803.42,2.79576934]
[1754851970090,0.21657752,804.23,803.41,2.79576934]
[1754851971791,0.21657752,804.23,803.37,2.79576934]
[1754851973289,0.21657752,804.23,803.47,2.79576934]
[1754851976497,0.21657752,804.23,803.62,2.79576934]
[1754851976899,0.21657752,804.23,803.57,2.79576934]
[1754851979598,0.21657752,804.23,803.54,2.79576934]
[1754851981594,0.21657752,804.23,803.58,2.79576934]
[1754851982094,0.21657752,804.23,803.6,2.79576934]
[1754851982599,0.21657752,804.23,803.58,2.79576934]
[1754851984099,0.21657752,804.23,803.6,2.79576934]
[1754851984895,0.21657752,804.23,803.55,2.79576934]
[1754851986394,0.21657752,804.23,803.56,2.79576934]
[1754851986798,0.21657752,804.23,803.61,2.79576934]
[1754851987298,0.21657752,804.23,803.55,2.79576934]
[1754851987896,0.21657752,804.23,803.54,2.79576934]
[1754851989905,0.21657752,804.23,803.55,2.79576934]
[1754851992503,0.21657752,804.23,803.56,2.79576934]
[1754851994104,0.21657752,804.23,803.55,2.79576934]
[1754851994605,0.21657752,804.23,803.54,2.79576934]
[1754851995207,0.21657752,804.23,803.55,2.79576934]
[1754851996610,0.21657752,804.23,803.56,2.79576934]
[1754851997310,0.21657752,804.23,803.59,2.79576934]
[1754851997606,0.21657752,804.23,803.58,2.79576934]
[1754851998210,0.21657752,804.23,803.57,2.79576934]
[1754851998610,0.21657752,804.23,803.55,2.79576934]
[1754851999107,0.21657752,804.23,803.56,2.79576934]
[1754852000214,0.21657752,804.23,803.53,2.79576934]
[1754852001011,0.21657752,804.23,803.54,2.79576934]
[1754852001313,0.21657752,804.23,803.55,2.79576934]
[1754852001918,0.21657752,804.23,803.56,2.79576934]
[1754852002314,0.21657752,804.23,803.58,2.79576934]
[1754852002813,0.21657752,804.23,803.59,2.79576934]
[1754852003409,0.21657752,804.23,803.51,2.79576934]
[1754852004115,0.21657752,804.23,803.49,2.79576934]
[1754852004517,0.21657752,804.23,803.5,2.79576934]
[1754852006419,0.21657752,804.23,803.48,2.79576934]
[1754852007623,0.21657752,804.23,803.5,2.79576934]
[1754852008721,0.21657752,804.23,803.52,2.79576934]
[1754852009122,0.21657752,804.23,803.49,2.79576934]
[1754852009721,0.21657752,804.23,803.51,2.79576934]
[1754852010221,0.21657752,804.23,803.52,2.79576934]
[1754852013327,0.21657752,804.23,803.59,2.79576934]
[1754852016431,0.21657752,804.23,803.11,2.79576934]
[1754852017931,0.21657752,804.23,803.12,2.79576934]
[1754852019033,0.21657752,804.23,802.79,0.21659436]
[1754852019034,0.21657752,804.23,803.13,2.79576934]
[1754852021130,0.21657752,804.23,803.12,2.79576934]
[1754852023635,0.21657752,804.23,803.41,2.79576934]
[1754852024336,0.21657752,804.23,803.42,2.79576934]
[1754852024738,0.21657752,804.23,803.45,2.79576934]
[1754852026238,0.21657752,804.23,803.41,2.79576934]
[1754852031042,0.21657752,804.23,803.51,2.79576934]
[1754852035341,0.21657752,804.23,803.49,2.79576934]
[1754852036141,0.21657752,804.23,803.66,2.79576934]
[1754852037948,0.21657752,804.23,803.52,2.79576934]
[1754852038244,0.21657752,804.23,803.42,2.79576934]
[1754852039846,0.21657752,804.23,803.43,2.79576934]
[1754852040545,0.21657752,804.23,803.41,2.79576934]
[1754852040949,0.21657752,804.23,803.42,2.79576934]
[1754852045252,0.21657752,804.23,803.44,2.79576934]
[1754852046153,0.21657752,804.23,803.45,2.79576934]
[1754852047650,0.21657752,804.23,803.54,2.79576934]
[1754852048353,0.21657752,804.23,803.67,2.79576934]
[1754852051954,0.21657752,804.23,802.79,3.0123637]
[1754852052558,0.21657752,804.23,802.79,0.21659436]
[1754852059861,0.21657752,804.23,803.27,2.79576934]
[1754852061863,0.21657752,804.23,803.33,2.79576934]
[1754852062359,0.21657752,804.23,803.34,2.79576934]
[1754852062864,0.21657752,804.23,803.32,2.79576934]
[1754852063264,0.21657752,804.23,803.25,2.79576934]
[1754852064863,0.21657752,804.23,802.94,3.90341846]
[1754852065067,0.21657752,804.23,802.92,2.79576934]
[1754852066468,0.21657752,804.23,803.05,2.79576934]
[1754852066966,0.21657752,804.23,802.91,2.79576934]
[1754852068068,0.21657752,804.23,802.93,2.79576934]
[1754852068567,0.21657752,804.23,802.92,2.79576934]
[1754852068970,0.21657752,804.23,802.93,2.79576934]
[1754852072168,0.21657752,804.23,802.92,2.79576934]
[1754852072667,0.21657752,804.23,802.93,2.79576934]
[1754852073370,0.21657752,804.23,802.94,2.79576934]
[1754852073771,0.21657752,804.23,802.95,2.79576934]
[1754852074769,0.21657752,804.23,803.11,2.79576934]
[1754852076370,0.21657752,804.23,803.12,2.79576934]
[1754852076874,0.21657752,804.23,803.5,2.79576934]
[1754852077370,0.21657752,804.23,803.49,2.79576934]
[1754852079974,0.21657752,804.23,803.28,2.79576934]
[1754852081077,0.21657752,804.23,803.29,2.79576934]
[1754852082081,0.21657752,804.23,803.28,2.79576934]
[1754852084183,0.21657752,804.23,803.26,2.79576934]
[1754852085178,0.21657752,804.23,803.25,2.79576934]
[1754852086184,0.21657752,804.23,803.22,2.79576934]
[1754852088484,0.21657752,804.23,803.2,2.79576934]
[1754852088887,0.21657752,804.23,803.12,2.79576934]
[1754852089883,0.21657752,804.23,803.17,2.79576934]
[1754852093184,0.21657752,804.23,803.11,2.79576934]
[1754852094586,0.21657752,804.23,803.1,2.79576934]
[1754852095088,0.21657752,804.23,803.12,2.79576934]
[1754852096086,0.21657752,804.23,803.19,2.79576934]
[1754852097195,0.21657752,804.23,803.2,2.79576934]
[1754852098189,0.21657752,804.23,803.22,2.79576934]
[1754852098790,0.21657752,804.23,803.3,2.79576934]
[1754852099390,0.21657752,804.23,803.32,2.79576934]
[1754852100894,0.21657752,804.23,803.31,2.79576934]
[1754852102392,0.21657752,804.23,803.32,2.79576934]
[1754852102896,0.21657752,804.23,803.43,2.79576934]
[1754852104193,0.21657752,804.23,803.33,2.79576934]
[1754852104498,0.21657752,804.23,803.35,2.79576934]
[1754852104993,0.21657752,804.23,803.36,2.79576934]
[1754852106595,0.21657752,804.23,803.22,2.79576934]
[1754852106995,0.21657752,804.23,803.17,2.79576934]
[1754852108096,0.21657752,804.23,803.15,2.79576934]
[1754852108801,0.21657752,804.23,803.16,2.79576934]
[1754852109399,0.21657752,804.23,803.15,2.79576934]
[1754852110398,0.21657752,804.23,803.16,2.79576934]
[1754852110901,0.21657752,804.23,803.17,2.79576934]
[1754852111302,0.21657752,804.23,803.18,2.79576934]
[1754852112402,0.21657752,804.23,803.2,2.79576934]
[1754852113999,0.21657752,804.23,803.26,2.79576934]
[1754852114899,0.21657752,804.23,803.28,2.79576934]
[1754852115399,0.21657752,804.23,803.3,2.79576934]
[1754852116599,0.21657752,804.23,803.42,2.79576934]
[1754852117103,0.21657752,804.23,803.47,2.79576934]
[1754852117604,0.21657752,804.23,803.49,2.79576934]
[1754852122903,0.21657752,804.23,803.3,2.79576934]
[1754852123307,0.21657752,804.23,803.26,2.79576934]
[1754852126410,0.21657752,804.23,803.24,2.79576934]
[1754852128513,0.21657752,804.23,803.27,2.79576934]
[1754852129016,0.5,804.68,803.27,2.79576934]
[1754852129210,0.82482254,804.67,803.27,2.79576934]
[1754852129513,0.82482254,804.66,803.22,2.79576934]
[1754852129712,0.82482254,804.65,803.22,2.79576934]
[1754852129914,0.21656943,804.33,803.22,2.79576934]
[1754852131716,0.21656943,804.33,802.92,0.21656943]
[1754852132724,0.21656943,804.33,803.0,2.79576934]
[1754852134821,0.21656943,804.33,802.99,2.79576934]
[1754852136322,0.21656943,804.33,803.0,2.79576934]
[1754852138524,0.21656943,804.33,802.99,2.79576934]
[1754852139621,0.21656943,804.33,803.01,2.79576934]
[1754852140024,0.21656943,804.33,803.0,2.79576934]
[1754852141127,0.21656943,804.33,803.01,2.79576934]
[1754852141525,0.21656943,804.33,803.46,2.79576934]
[1754852142024,0.21656943,804.33,803.47,2.79576934]
[1754852142625,0.21656943,804.33,803.5,2.79576934]
[1754852143330,0.21656943,804.33,803.52,2.79576934]
[1754852143730,0.21656943,804.33,803.51,2.79576934]
[1754852145227,0.21656943,804.33,803.35,2.79576934]
[1754852145832,0.21656943,804.33,802.92,0.21656943]
[1754852155743,0.21656943,804.33,803.15,2.79576934]
[1754852156242,0.21656943,804.33,803.29,2.79576934]
[1754852156738,0.21656943,804.33,803.28,2.79576934]
[1754852158140,0.21656943,804.33,803.31,2.79576934]
[1754852161443,0.21656943,804.33,802.96,3.90341846]
[1754852161444,0.21656943,804.33,803.1,2.79576934]
[1754852161846,0.21656943,804.33,803.09,2.79576934]
[1754852164653,0.21656943,804.33,803.08,2.79576934]
[1754852165048,0.21656943,804.33,803.09,2.79576934]
[1754852166150,0.21656943,804.33,803.1,2.79576934]
[1754852166654,0.21656943,804.33,803.07,2.79576934]
[1754852168652,0.21656943,804.33,803.08,2.79576934]
[1754852169656,0.21656943,804.33,803.07,2.79576934]
[1754852171353,0.21656943,804.33,803.58,2.79576934]
[1754852171756,0.21656943,804.33,803.31,3.90341846]
[1754852172659,0.21656943,804.33,802.98,2.79576934]
[1754852172856,0.21656943,804.33,802.92,0.21656943]
[1754852176562,0.21656943,804.33,802.95,2.79576934]
[1754852179265,0.21656943,804.33,802.99,2.79576934]
[1754852179664,0.21656943,804.33,803.01,2.79576934]
[1754852181663,0.21656943,804.33,803.26,2.79576934]
[1754852182768,0.21656943,804.33,803.56,2.79576934]
[1754852183170,0.21656943,804.33,803.49,2.79576934]
[1754852186268,0.21656943,804.33,803.39,2.79576934]
[1754852188466,0.21656943,804.33,803.41,2.79576934]
[1754852189171,0.5,804.77,803.41,2.79576934]
[1754852189673,0.5,804.77,803.44,2.79576934]
[1754852190973,0.5,804.77,803.62,2.79576934]
[1754852192469,0.352,804.75,803.62,2.79576934]
[1754852192674,0.5,804.77,803.62,2.79576934]
[1754852192871,0.216496,804.47,803.62,2.79576934]
[1754852193175,0.216496,804.47,803.66,2.79576934]
[1754852194671,0.216496,804.47,803.62,2.79576934]
[1754852195170,0.216496,804.47,803.66,2.79576934]
[1754852195675,0.216496,804.47,803.39,3.90341846]
[1754852196473,0.216496,804.47,803.34,2.79576934]
[1754852197171,0.216496,804.47,803.33,2.79576934]
[1754852197771,0.216496,804.47,803.31,2.79576934]
[1754852198377,0.216496,804.47,803.32,2.79576934]
[1754852198878,0.216496,804.47,803.31,2.79576934]
[1754852199275,0.216496,804.47,803.07,0.216496]
[1754852199276,0.216496,804.47,803.32,2.79576934]
[1754852200278,0.216496,804.47,803.33,2.79576934]
[1754852201580,0.216496,804.47,803.32,2.79576934]
[1754852202475,0.216496,804.47,803.33,2.79576934]
[1754852202979,0.216496,804.47,803.32,2.79576934]
[1754852203981,0.216496,804.47,803.35,2.79576934]
[1754852204477,0.216496,804.47,803.36,2.79576934]
[1754852205682,0.216496,804.47,803.53,2.79576934]
[1754852206096,0.216496,804.47,803.54,2.79576934]
[1754852206583,0.216496,804.47,803.58,2.79576934]
[1754852207084,0.216496,804.47,803.59,2.79576934]
[1754852207584,0.216496,804.47,803.31,3.90341846]
[1754852207585,0.216496,804.47,803.63,2.79576934]
[1754852208179,0.216496,804.47,803.66,2.79576934]
[1754852208787,0.216496,804.47,803.67,2.79576934]
[1754852213783,0.216496,804.47,803.62,2.79576934]
[1754852216385,0.216496,804.47,803.58,2.79576934]
[1754852219083,0.216496,804.47,803.57,2.79576934]
[1754852219489,0.216496,804.47,803.58,2.79576934]
[1754852219986,0.216496,804.47,803.61,2.79576934]
[1754852220590,0.216496,804.47,803.62,2.79576934]
[1754852221089,0.216496,804.47,803.61,2.79576934]
[1754852222090,0.216496,804.47,803.51,2.79576934]
[1754852223193,0.216496,804.47,803.52,2.79576934]
[1754852223693,0.216496,804.47,803.56,2.79576934]
[1754852224893,0.216496,804.47,803.26,3.90341846]
[1754852224894,0.216496,804.47,803.55,2.79576934]
[1754852225193,0.216496,804.47,803.56,2.79576934]
[1754852226393,0.216496,804.47,803.47,2.79576934]
[1754852228299,0.216496,804.47,803.39,2.79576934]
[1754852228895,0.216496,804.47,803.41,2.79576934]
[1754852229998,0.216496,804.47,803.4,2.79576934]
[1754852230998,0.216496,804.47,803.41,2.79576934]
[1754852232098,0.216496,804.47,803.49,2.79576934]
[1754852232997,0.216496,804.47,803.48,2.79576934]
[1754852234198,0.216496,804.47,803.47,2.79576934]
[1754852234599,0.216496,804.47,803.45,2.79576934]
[1754852235701,0.216496,804.47,803.44,2.79576934]
[1754852236197,0.216496,804.47,803.58,2.79576934]
[1754852236697,0.216496,804.47,803.57,2.79576934]
[1754852237302,0.216496,804.47,803.58,2.79576934]
[1754852237804,0.216496,804.47,803.65,2.79576934]
[1754852239304,0.216496,804.47,803.66,2.79576934]
[1754852239905,0.216496,804.47,803.72,2.79576934]
[1754852242408,0.216496,804.47,803.69,2.79576934]
[1754852242908,0.216496,804.47,803.6,2.79576934]
[1754852243509,0.216496,804.47,803.59,2.79576934]
[1754852244004,0.216496,804.47,803.62,2.79576934]